bitfinex/quotes_ETHUSD_20241022
["timestamp","ask_amount","ask_price","bid_price","bid_amount"]
[1729584951715,3.77672,2647.8,2647.5,0.13258263]
[1729584957542,8.32916,2647.8,2647.5,0.13258263]
[1729584957746,3.77686,2647.7,2647.5,0.13258263]
[1729584958046,3.77686,2647.7,2647.2,4.57547]
[1729584958245,3.77686,2647.7,2647.6,0.13254998]
[1729584958413,4.55232,2647.8,2647.2,8.35293]
[1729584958614,4.55232,2647.8,2647.6,0.13254998]
[1729584958918,7.56862,2648.0,2647.4,3.77721]
[1729584959121,7.56862,2648.0,2647.7,0.13251733]
[1729584959318,7.56862,2648.0,2647.5,3.77711]
[1729584959618,7.56862,2648.0,2647.6,0.13254998]
[1729584959852,3.77658,2647.9,2647.4,3.77718]
[1729584960180,3.77658,2647.9,2647.7,0.13251733]
[1729584960331,7.56862,2648.0,2647.4,3.77718]
[1729584960657,4.56862,2648.0,2647.5,3.90971263]
[1729584960864,4.56862,2648.0,2647.6,0.8069]
[1729584961062,4.56862,2648.0,2647.6,0.93944998]
[1729584961263,8.34517,2648.0,2647.6,0.93944998]
[1729584961650,3.77659,2647.9,2647.6,0.93944998]
[1729584961964,8.34514,2648.0,2647.6,0.93944998]
[1729584962164,4.56862,2648.0,2647.6,0.93944998]
[1729584962364,3.77664,2647.9,2647.6,0.93944998]
[1729584962680,3.77664,2647.9,2647.6,0.13254998]
[1729584963103,3.77664,2647.9,2647.4,0.8183]
[1729584963287,7.55333,2647.9,2647.7,0.13251129]
[1729584963489,3.77664,2647.9,2647.4,0.8183]
[1729584963875,3.77664,2647.9,2647.5,0.1325766]
[1729584964757,0.02,2648.7,2647.5,0.1325766]
[1729584964758,4.5478,2648.3,2647.5,0.1325766]
[1729584964959,4.5478,2648.3,2647.6,0.87962974]
[1729584965403,4.5478,2648.3,2647.7,0.13257137]
[1729584965967,0.7717,2648.3,2647.9,3.77656]
[1729584966164,0.8289,2648.7,2648.3,3.776]
[1729584966490,3.77526,2648.9,2648.3,3.776]
[1729584966666,7.55054,2648.9,2648.3,3.776]
[1729584967001,7.55054,2648.9,2648.1,4.52825]
[1729584967002,3.77537,2648.8,2648.4,0.13234287]
[1729584967156,3.77537,2648.8,2648.1,4.52825]
[1729584967363,3.77537,2648.8,2648.3,3.77597]
[1729584967606,4.56415,2648.7,2648.4,0.13214464]
[1729584967903,3.77592,2648.4,2647.9,4.55449]
[1729584968604,3.77572,2648.5,2647.9,4.55448]
[1729584969197,7.55153,2648.5,2647.9,4.55448]
[1729584969394,3.77572,2648.5,2647.9,0.778]
[1729584969565,4.55247,2648.3,2647.7,8.33093]
[1729584969759,4.55247,2648.3,2647.8,3.77663]
[1729584970193,0.7764,2648.3,2647.9,3.77653]
[1729584971832,0.7764,2648.3,2647.9,7.55302]
[1729584972040,0.7764,2648.3,2647.9,3.77649]
[1729584972619,4.55242,2648.3,2647.8,3.77668]
[1729584973527,0.7764,2648.3,2647.9,3.7765]
[1729584974413,0.7764,2648.3,2647.7,4.55417]
[1729584974611,4.5524,2648.3,2647.7,8.33092]
[1729584975751,4.5524,2648.3,2647.8,3.7767]
[1729584976455,0.7764,2648.3,2647.8,3.7767]
[1729584976652,3.77565,2648.6,2647.9,3.77649]
[1729584976956,0.764,2648.8,2648.1,0.7749]
[1729584977135,0.764,2649.1,2648.5,3.7757]
[1729584977314,0.764,2649.1,2648.7,3.77539]
[1729584978167,0.764,2649.1,2648.6,4.55042]
[1729584978468,4.53888,2649.1,2648.6,0.7749]
[1729584978674,0.764,2648.6,2648.1,3.77617]
[1729584978830,0.453944,2648.5,2648.1,3.7762]
[1729584979027,0.764,2648.6,2648.1,3.7762]
[1729584979781,0.764,2648.6,2648.1,7.55241]
[1729584980073,0.764,2648.6,2648.2,3.77611]
[1729584981772,0.764,2648.6,2648.3,0.12715676]
[1729584982078,0.764,2648.6,2648.2,3.77611]
[1729584982260,0.764,2648.6,2648.4,0.12712412]
[1729584982426,0.764,2648.6,2648.2,3.77611]
[1729584982626,0.764,2648.6,2648.5,0.12709149]
[1729584982832,0.764,2648.6,2648.3,3.77599]
[1729584983046,0.764,2648.6,2648.5,0.12709149]
[1729584983338,0.7727,2648.9,2648.5,3.77561]
[1729584983549,3.77535,2648.8,2648.5,0.12709149]
[1729584983747,3.77545,2648.7,2648.5,0.12709149]
[1729584983952,3.77529,2648.8,2648.3,3.77592]
[1729584984247,5.302716,2648.9,2648.4,3.77585]
[1729584984561,5.302716,2648.9,2648.4,3.90299209]
[1729584984757,5.302716,2648.9,2648.4,0.12714209]
[1729584984956,9.077966,2648.9,2648.4,0.12714209]
[1729584985162,5.302716,2648.9,2648.4,3.90299209]
[1729584985619,5.302716,2648.9,2648.4,0.12714209]
[1729584985822,9.077956,2648.9,2648.4,0.12714209]
[1729584986274,5.302706,2648.9,2648.4,3.90288209]
[1729584986477,4.54794,2648.9,2648.4,3.90288209]
[1729584987310,4.54794,2648.9,2648.4,0.12714209]
[1729584987512,3.7754,2648.8,2648.4,0.12714209]
[1729584987915,4.54794,2648.9,2648.2,3.77611]
[1729584988104,3.77552,2648.7,2648.5,0.12705556]
[1729584988304,3.77554,2648.7,2648.2,3.77611]
[1729584988638,3.77554,2648.7,2648.0,3.77637]
[1729584988639,3.77566,2648.6,2648.0,3.77635]
[1729584988810,3.77566,2648.6,2648.3,0.12712083]
[1729584989016,3.77566,2648.6,2648.1,3.77619]
[1729584989217,3.77566,2648.6,2648.4,0.1270882]
[1729584989432,3.77566,2648.6,2648.1,3.77619]
[1729584989744,3.77566,2648.6,2648.5,0.12705556]
[1729584989909,3.77566,2648.6,2648.1,3.77619]
[1729584990119,3.77566,2648.6,2648.5,0.12705556]
[1729584990338,3.77566,2648.6,2648.1,3.77619]
[1729584990534,4.6846154,2648.6,2648.5,0.12705556]
[1729584990729,3.77575,2648.5,2648.0,3.77635]
[1729584992013,3.77575,2648.5,2648.0,7.55271]
[1729584992220,8.33481,2648.7,2648.1,3.77628]
[1729584993203,4.55925,2648.7,2648.1,3.77628]
[1729584993404,3.7756,2648.6,2648.1,3.77628]
[1729584993603,3.7756,2648.6,2648.0,3.77635]
[1729584993948,3.7756,2648.6,2647.9,0.7744]
[1729584994119,3.77608,2648.3,2647.8,7.55325]
[1729584994313,7.55163,2648.5,2647.9,3.7765]
[1729584994755,3.77586,2648.4,2647.9,3.7765]
[1729584994906,3.77586,2648.4,2647.8,3.77661]
[1729584996102,3.77586,2648.4,2647.8,3.85213678]
[1729584996303,3.77586,2648.4,2647.8,7.62877678]
[1729584996631,7.55182,2648.4,2647.9,0.12724539]
[1729584998323,0.7878,2648.2,2647.9,0.12724539]
[1729584998521,3.77638,2648.1,2647.9,0.12724539]
[1729584998892,4.232798,2648.1,2648.0,0.12739839]
[1729584999035,4.232788,2648.1,2647.6,3.77691]
[1729584999223,4.232788,2648.1,2648.0,0.12739839]
[1729584999423,4.232788,2648.1,2647.5,4.54002]
[1729584999669,4.232788,2648.1,2648.0,0.12746427]
[1729584999872,4.232788,2648.1,2647.5,4.54002]
[1729585000088,4.56395,2648.2,2648.0,0.12746427]
[1729585000416,8.33974,2648.4,2647.8,3.77669]
[1729585000566,8.33974,2648.4,2648.1,0.12755143]
[1729585000724,8.33974,2648.4,2647.8,3.77669]
[1729585000926,8.33974,2648.4,2648.2,0.12751879]
[1729585001266,8.452714,2648.4,2648.3,0.12748615]
[1729585001453,8.452714,2648.4,2647.8,3.77669]
[1729585001656,7.56374,2648.4,2648.3,0.12749214]
[1729585001969,7.56374,2648.4,2647.8,3.77669]
[1729585002327,3.77601,2648.3,2647.9,0.12762271]
[1729585006342,7.56366,2648.4,2647.9,3.90417271]
[1729585006751,3.7878,2648.4,2647.9,0.12762271]
[1729585006950,3.77601,2648.3,2647.9,0.12762271]
[1729585007435,3.77615,2648.2,2647.9,0.12762271]
[1729585007673,3.77615,2648.2,2647.6,7.55383]
[1729585007898,3.77615,2648.2,2648.0,0.12775775]
[1729585008073,3.77615,2648.2,2647.6,7.55383]
[1729585008282,3.77615,2648.2,2648.1,0.12772511]
[1729585008432,3.77638,2648.1,2647.6,3.7769]
[1729585010486,3.7761,2648.3,2647.7,3.77678]
[1729585010787,3.7761,2648.3,2647.7,3.8523129]
[1729585011142,3.776,2648.3,2647.8,3.77669]
[1729585011346,3.776,2648.3,2647.7,3.8523129]
[1729585011693,3.776,2648.3,2647.9,0.7863]
[1729585012196,0.7878,2648.4,2648.0,0.12776973]
[1729585012396,4.56366,2648.4,2648.0,0.12776973]
[1729585012700,3.77558,2648.6,2648.0,0.20329745]
[1729585013007,3.77546,2648.7,2648.1,3.77615]
[1729585013008,7.55102,2648.7,2648.1,3.77615]
[1729585013505,7.55102,2648.7,2648.2,0.12768648]
[1729585013879,3.77546,2648.7,2648.2,0.12768648]
[1729585014074,3.77546,2648.7,2648.2,3.90382648]
[1729585014277,3.77546,2648.7,2648.2,0.12768648]
[1729585014598,3.77559,2648.6,2648.2,0.12768648]
[1729585016875,3.77546,2648.7,2648.2,0.12768648]
[1729585017606,3.77562,2648.6,2648.2,0.12768648]
[1729585019221,0.8085,2648.8,2648.2,0.12768648]
[1729585019425,3.77586,2648.5,2647.9,4.56277]
[1729585019581,4.59167,2648.4,2648.0,0.12754813]
[1729585020498,0.8157,2648.4,2648.0,3.90397813]
[1729585020682,0.8157,2648.4,2648.0,0.12754813]
[1729585020683,4.59169,2648.4,2648.0,0.12754813]
[1729585021021,0.55,2648.5,2648.0,0.12754813]
[1729585021435,3.77629,2648.1,2648.0,0.12754813]
[1729585021721,3.77664,2647.9,2647.4,0.80128674]
[1729585021891,7.55334,2647.9,2647.4,0.7824]
[1729585022075,3.77664,2647.9,2647.4,0.7824]
[1729585022474,7.5533,2647.9,2647.4,0.7824]
[1729585022719,3.77664,2647.9,2647.4,0.7824]
[1729585022878,3.77696,2647.7,2647.4,0.7824]
[1729585023080,3.76064174,2647.7,2647.1,0.7864]
[1729585023330,3.77745,2647.3,2646.9,0.7864]
[1729585023533,0.8199,2647.2,2646.8,3.77806]
[1729585023713,0.8199,2647.2,2646.7,0.7864]
[1729585024024,0.8199,2647.2,2646.7,4.56464]
[1729585024614,0.8199,2647.2,2646.7,0.7864]
[1729585024615,4.59748,2647.2,2646.7,0.7864]
[1729585026184,0.8199,2647.2,2646.7,4.56468]
[1729585026596,3.77722,2647.5,2646.8,3.77814]
[1729585026899,3.77722,2647.5,2646.9,0.7523]
[1729585027112,3.77722,2647.5,2646.9,0.8760871]
[1729585027686,3.77746,2647.3,2646.9,0.8760871]
[1729585027892,3.77746,2647.3,2646.9,0.1237871]
[1729585028583,3.77759,2647.2,2646.9,0.1237871]
[1729585028779,7.55501,2647.3,2646.7,4.52956]
[1729585029328,3.77746,2647.3,2646.8,0.12420922]
[1729585029534,7.55447,2647.5,2646.8,3.90234922]
[1729585029680,3.77731,2647.4,2646.9,3.77799]
[1729585030025,3.77751,2647.3,2646.9,0.12417655]
[1729585030181,3.77759,2647.2,2646.7,4.52957]
[1729585030602,3.77759,2647.2,2646.8,0.12420922]
[1729585030830,4.56509,2647.2,2646.8,0.12420922]
[1729585031982,3.77786,2647.0,2646.8,0.12420922]
[1729585032415,3.77801,2646.9,2646.5,0.828]
[1729585032618,3.77786,2647.0,2646.5,0.828]
[1729585032936,4.56517,2647.2,2646.6,3.77841]
[1729585032937,3.77776,2647.1,2646.6,3.77841]
[1729585033601,3.77789,2647.0,2646.5,4.60654]
[1729585034017,3.77789,2647.0,2646.3,4.38910509]
[1729585034018,0.8286,2647.0,2646.3,0.61033509]
[1729585034243,3.77835,2646.7,2646.3,0.59144835]
[1729585034438,4.984865,2646.6,2646.3,0.59144835]
[1729585034641,0.8286,2646.6,2646.3,0.59144835]
[1729585035133,4.60703,2646.6,2646.3,0.59144835]
[1729585035334,3.77865,2646.5,2646.3,0.59144835]
[1729585035749,0.8286,2646.6,2646.3,0.59144835]
[1729585035946,4.60716,2646.6,2646.3,0.59144835]
[1729585036106,3.77871,2646.4,2646.3,0.59144835]
[1729585036642,4.60716,2646.6,2646.3,0.59144835]
[1729585036846,8.38571,2646.6,2646.3,0.59144835]
[1729585037018,4.60715,2646.6,2646.3,0.59144835]
[1729585037610,8.38568,2646.6,2646.3,0.59144835]
[1729585038270,3.77858,2646.5,2646.3,0.59144835]
[1729585038941,4.60713,2646.6,2646.3,0.59144835]
[1729585039820,3.77866,2646.5,2646.3,0.59144835]
[1729585041264,3.0,2646.7,2646.3,0.59144835]
[1729585041718,3.0,2646.7,2646.4,0.12528086]
[1729585042963,6.77832,2646.7,2646.4,0.12528086]
[1729585043761,10.55668,2646.7,2646.4,0.12528086]
[1729585044261,6.77832,2646.7,2646.4,0.12528086]
[1729585044561,10.55673,2646.7,2646.4,0.12528086]
[1729585044762,6.77832,2646.7,2646.4,0.12528086]
[1729585044946,3.77845,2646.6,2646.4,0.12528086]
[1729585045146,6.77832,2646.7,2646.4,0.12528086]
[1729585045356,3.77857,2646.5,2646.4,0.12528086]
[1729585045777,3.77778,2647.1,2646.5,0.8285]
[1729585045977,0.55,2647.0,2646.5,0.8285]
[1729585046208,0.55,2647.0,2646.6,0.12552121]
[1729585046413,4.32791,2647.0,2646.6,0.12552121]
[1729585046570,3.77801,2646.9,2646.6,0.12552121]
[1729585047909,4.32786,2647.0,2646.6,0.12552121]
[1729585048210,7.59832,2647.3,2646.7,3.77828]
[1729585048420,3.8208,2647.3,2646.8,0.8299]
[1729585048582,3.7778,2647.1,2646.8,0.95535586]
[1729585050182,3.778,2646.9,2646.8,0.12545586]
[1729585050718,3.77826,2646.8,2646.3,5.15939835]
[1729585051015,3.77826,2646.8,2646.3,4.56795]
[1729585051317,4.6092,2646.9,2646.3,0.7892]
[1729585051514,3.77832,2646.7,2646.3,0.7892]
[1729585051880,7.55671,2646.7,2646.3,0.7892]
[1729585052306,3.77832,2646.7,2646.3,0.7892]
[1729585052514,0.8312,2646.9,2646.3,4.56805]
[1729585052823,4.60922,2646.9,2646.4,3.77868]
[1729585053192,4.60922,2646.9,2646.4,7.55723]
[1729585053618,4.60922,2646.9,2646.4,3.77861]
[1729585056816,4.60922,2646.9,2646.5,0.12535005]
[1729585060686,3.77825,2646.8,2646.5,0.12535005]
[1729585060891,3.77825,2646.8,2646.3,0.7892]
[1729585061130,3.77825,2646.8,2646.6,0.12532338]
[1729585061416,3.77825,2646.8,2646.3,0.7892]
[1729585061620,8.166997,2646.8,2646.7,0.1252907]
[1729585061903,3.77867,2646.5,2646.0,0.8141]
[1729585062103,3.77873,2646.4,2646.0,0.8141]
[1729585062338,4.58803,2646.4,2646.0,0.8141]
[1729585062645,3.77867,2646.5,2646.0,4.59337]
[1729585063204,3.77867,2646.5,2646.1,3.77914]
[1729585063400,3.77867,2646.5,2646.0,0.8141]
[1729585063605,3.77867,2646.5,2646.0,4.59329]
[1729585063801,0.8283,2646.6,2646.1,3.77914]
[1729585064249,3.77837,2646.7,2646.1,3.77914]
[1729585064454,3.77836,2646.7,2646.2,0.7969]
[1729585064660,6.7781,2646.9,2646.4,0.7969]
[1729585064828,3.7781,2646.9,2646.4,0.7969]
[1729585065218,7.55622,2646.9,2646.4,0.7969]
[1729585066147,3.77815,2646.8,2646.4,0.7969]
[1729585071357,3.7781,2646.9,2646.4,0.7969]
[1729585071561,2.94074174,2647.3,2646.7,4.60328]
[1729585071562,3.77743,2647.3,2646.7,4.60328]
[1729585071747,3.77758,2647.2,2646.7,4.60328]
[1729585071969,3.77758,2647.2,2646.8,0.12539592]
[1729585072983,3.7778,2647.1,2646.8,0.12539592]
[1729585074783,7.55526,2647.2,2646.8,0.12539592]
[1729585075277,3.77758,2647.2,2646.8,0.12539592]
[1729585076549,3.55,2647.3,2646.8,3.90353592]
[1729585077064,7.32751,2647.3,2646.8,3.90353592]
[1729585077244,3.77751,2647.3,2646.9,0.8151]
[1729585077578,7.55476,2647.4,2647.0,0.12533058]
[1729585077779,6.77702,2647.6,2647.0,3.90310058]
[1729585077945,3.0,2647.7,2647.3,0.7561]
[1729585078146,3.77708,2647.6,2647.3,0.7561]
[1729585078348,3.77708,2647.6,2647.4,0.12500808]
[1729585079387,7.5542,2647.6,2647.4,0.12500808]
[1729585079543,4.32714,2647.5,2647.4,0.12500808]
[1729585079743,3.77729,2647.4,2647.1,0.7554]
[1729585079983,5.08154,2647.5,2647.4,0.12481028]
[1729585080278,5.08154,2647.5,2647.1,0.7554]
[1729585080279,4.32714,2647.5,2647.1,0.7554]
[1729585080487,4.53075,2647.7,2647.4,0.12481028]
[1729585080636,0.45496367,2647.6,2647.1,4.53311]
[1729585080841,3.0,2647.7,2647.2,4.53795]
[1729585081038,0.01888674,2647.8,2647.4,3.77729]
[1729585081263,3.77644,2648.0,2647.5,0.7605]
[1729585081474,3.77644,2648.0,2647.5,0.88527763]
[1729585082790,3.0,2648.2,2647.7,3.77678]
[1729585082986,3.0,2648.2,2647.8,0.758]
[1729585083136,3.0,2648.2,2647.8,0.88197843]
[1729585083341,6.77626,2648.2,2647.8,0.88197843]
[1729585084282,3.77587,2648.4,2647.8,0.88197843]
[1729585084584,6.71594174,2648.9,2648.2,3.7761]
[1729585084585,4.57863,2648.7,2648.2,3.7761]
[1729585084744,3.77523,2648.9,2648.3,3.77593]
[1729585084745,0.67159417,2648.8,2648.3,3.77593]
[1729585085078,3.77543,2648.7,2648.4,0.12365078]
[1729585085460,3.77543,2648.7,2648.1,4.60159]
[1729585086087,3.77543,2648.7,2648.2,0.12370407]
[1729585086550,3.77543,2648.7,2648.2,3.89980407]
[1729585087263,3.77543,2648.7,2648.2,0.12370407]
[1729585088084,0.8304,2648.9,2648.3,3.77599]
[1729585088299,0.55,2649.0,2648.5,3.7757]
[1729585088513,0.01888674,2649.1,2648.6,0.7575]
[1729585088787,3.77501,2649.0,2648.7,0.12333725]
[1729585090473,3.77529,2648.8,2648.7,0.12333725]
[1729585090719,3.77552,2648.7,2648.4,0.8163]
[1729585091060,3.77552,2648.7,2648.5,0.1185809]
[1729585091261,3.77529,2648.8,2648.5,0.1185809]
[1729585091477,7.55068,2648.8,2648.5,0.1185809]
[1729585092178,7.55072,2648.8,2648.5,0.1185809]
[1729585092458,3.77529,2648.8,2648.5,0.1185809]
[1729585092663,3.77544,2648.7,2648.5,0.1185809]
[1729585093469,3.77557,2648.6,2648.5,0.1185809]
[1729585093666,3.77529,2648.8,2648.5,0.1185809]
[1729585094197,0.55,2648.9,2648.5,0.1185809]
[1729585094506,3.77486,2649.1,2648.7,0.7855]
[1729585094659,3.77501,2649.0,2648.7,0.7855]
[1729585094859,3.77501,2649.0,2648.8,0.11847704]
[1729585095250,3.77486,2649.1,2648.7,0.7855]
[1729585095456,3.775,2649.0,2648.9,0.11844442]
[1729585095658,3.77515,2648.9,2648.8,0.11847704]
[1729585095870,4.58295,2648.9,2648.5,0.7603]
[1729585096053,4.58295,2648.9,2648.2,0.7603]
[1729585096054,3.77551,2648.7,2648.2,0.7603]
[1729585096282,3.77559,2648.6,2648.2,0.7603]
[1729585096807,3.77551,2648.7,2648.2,0.7603]
[1729585096974,7.55104,2648.7,2648.2,0.7603]
[1729585097561,3.77551,2648.7,2648.2,0.7603]
[1729585097899,3.77558,2648.6,2648.2,0.7603]
[1729585099675,3.77587,2648.4,2647.7,3.79567674]
[1729585100012,3.77587,2648.4,2647.9,0.7683]
[1729585100013,3.776,2648.3,2647.9,0.7683]
[1729585101404,3.77615,2648.2,2647.9,0.7683]
[1729585101705,4.153835,2648.2,2647.5,0.8051]
[1729585101883,7.55248,2648.2,2647.6,3.77699]
[1729585102098,7.55248,2648.2,2647.7,0.8069]
[1729585102292,3.77631,2648.1,2647.7,0.8069]
[1729585103122,3.7765,2648.0,2647.7,0.8069]
[1729585103721,3.77672,2647.8,2647.3,0.8069]
[1729585104029,3.77702,2647.6,2647.3,0.8069]
[1729585104522,3.77672,2647.8,2647.3,0.8069]
[1729585105326,3.77672,2647.8,2647.3,4.58431]
[1729585105819,3.77672,2647.8,2647.3,0.8069]
[1729585106025,3.77687,2647.7,2647.3,0.8069]
[1729585106222,3.77672,2647.8,2647.3,0.8069]
[1729585106419,7.55353,2647.8,2647.3,0.8069]
[1729585107645,7.55352,2647.8,2647.3,0.8069]
[1729585107980,3.77672,2647.8,2647.3,0.8069]
[1729585108908,7.55352,2647.8,2647.3,0.8069]
[1729585109126,3.77672,2647.8,2647.3,0.8069]
[1729585109535,3.77672,2647.8,2647.3,4.58431]
[1729585110087,3.77652,2648.0,2647.4,3.77728]
[1729585110088,4.32665,2647.9,2647.4,3.77728]
[1729585110902,3.77673,2647.8,2647.3,0.8069]
[1729585111832,3.77673,2647.8,2647.3,4.5843]
[1729585112032,3.77652,2648.0,2647.6,0.815]
[1729585113301,7.55304,2648.0,2647.6,0.815]
[1729585113737,3.77652,2648.0,2647.6,0.815]
[1729585114537,7.55305,2648.0,2647.6,0.815]
[1729585114736,3.77652,2648.0,2647.6,0.815]
[1729585115034,7.55307,2648.0,2647.6,0.815]
[1729585115401,7.55305,2648.0,2647.6,0.815]
[1729585115746,3.77652,2648.0,2647.6,0.815]
[1729585116044,7.55246,2648.2,2647.7,0.8074]
[1729585116336,3.77629,2648.1,2647.7,0.8074]
[1729585116748,3.77629,2648.1,2647.8,0.11951429]
[1729585116898,3.77615,2648.2,2647.8,0.11951429]
[1729585117108,3.77615,2648.2,2647.7,4.58424]
[1729585117353,7.55238,2648.2,2647.9,0.11948164]
[1729585117559,6.77586,2648.4,2648.0,0.119449]
[1729585117767,3.77584,2648.5,2648.0,0.119449]
[1729585118061,3.77589,2648.4,2648.0,0.119449]
[1729585118558,7.55165,2648.5,2648.1,0.7612]
[1729585118913,7.55165,2648.5,2648.2,0.11938372]
[1729585119528,3.77593,2648.4,2648.2,0.11938372]
[1729585121945,3.776,2648.3,2648.2,0.11938372]
[1729585122760,7.55183,2648.4,2648.2,0.11938372]
[1729585122931,3.77587,2648.4,2648.2,0.11938372]
[1729585123130,7.55185,2648.4,2648.2,0.11938372]
[1729585123962,3.776,2648.3,2648.2,0.11938372]
[1729585124117,3.77593,2648.4,2648.2,0.11938372]
[1729585125081,4.153238,2648.6,2648.2,0.11938372]
[1729585125230,7.928948,2648.6,2648.2,0.11938372]
[1729585125430,3.77573,2648.5,2648.2,0.11938372]
[1729585126172,3.0,2648.7,2648.2,0.11938372]
[1729585126483,3.77579,2648.5,2648.2,0.11938372]
[1729585128043,6.77556,2648.7,2648.2,0.11938372]
[1729585128281,3.0,2648.7,2648.3,0.8139]
[1729585128445,3.77558,2648.6,2648.3,0.8139]
[1729585128677,3.77558,2648.6,2648.4,0.11907348]
[1729585129577,3.0,2648.7,2648.4,0.11907348]
[1729585130138,3.77546,2648.7,2648.4,0.11907348]
[1729585130678,3.77559,2648.6,2648.4,0.11907348]
[1729585131472,3.77572,2648.5,2648.4,0.11907348]
[1729585131938,3.77572,2648.5,2648.1,0.8088]
[1729585132281,3.77572,2648.5,2648.2,0.11913875]
[1729585134870,3.77589,2648.4,2648.2,0.11913875]
[1729585135387,3.776,2648.3,2648.2,0.11913875]
[1729585135744,3.776,2648.3,2647.9,0.7677]
[1729585135940,3.776,2648.3,2648.2,0.11900135]
[1729585136140,4.607689,2648.3,2647.9,0.7677]
[1729585136342,3.776,2648.3,2648.2,0.11900135]
[1729585136610,3.776,2648.3,2647.9,0.7677]
[1729585137037,3.776,2648.3,2648.0,0.11906663]
[1729585137494,7.55184,2648.4,2648.0,0.11906663]
[1729585137840,3.77589,2648.4,2648.0,0.11906663]
[1729585138571,7.55183,2648.4,2648.0,0.11906663]
[1729585139567,3.77589,2648.4,2648.0,0.11906663]
[1729585140171,7.55185,2648.4,2648.0,0.11906663]
[1729585140794,3.77589,2648.4,2648.0,0.11906663]
[1729585142107,7.55185,2648.4,2648.0,0.11906663]
[1729585142385,3.77589,2648.4,2648.0,0.11906663]
[1729585142895,7.55184,2648.4,2648.0,0.11906663]
[1729585143268,3.77589,2648.4,2648.0,0.11906663]
[1729585143665,7.55188,2648.4,2648.0,0.11906663]
[1729585144275,3.77589,2648.4,2648.0,0.11906663]
[1729585144884,7.55186,2648.4,2648.0,0.11906663]
[1729585145695,3.77589,2648.4,2648.1,0.7918]
[1729585145987,3.77589,2648.4,2648.1,0.91083399]
[1729585147765,7.55184,2648.4,2648.1,0.91083399]
[1729585147966,3.77589,2648.4,2648.1,0.91083399]
[1729585148167,7.55185,2648.4,2648.1,0.91083399]
[1729585149163,3.77589,2648.4,2648.1,0.91083399]
[1729585149815,7.55188,2648.4,2648.1,0.91083399]
[1729585149980,3.77602,2648.3,2648.1,0.91083399]
[1729585151405,3.77602,2648.3,2648.1,0.11903399]
[1729585151406,5.09191136,2648.2,2648.1,0.11903399]
[1729585151779,3.77639,2648.1,2647.8,0.7916]
[1729585152159,5.09216136,2648.1,2647.8,0.7916]
[1729585152608,3.77657,2647.9,2647.6,0.8128]
[1729585152908,3.77644,2648.0,2647.6,0.8128]
[1729585154478,1.31577136,2647.7,2647.4,0.8288]
[1729585154694,1.31577136,2647.5,2647.2,0.84768674]
[1729585154874,3.7768,2647.8,2647.2,0.84768674]
[1729585154875,1.31577136,2647.4,2647.2,0.8288]
[1729585155075,3.77758,2647.2,2646.9,0.8288]
[1729585156018,5.09335136,2647.2,2646.9,0.8288]
[1729585156315,3.77758,2647.2,2646.9,0.8288]
[1729585156727,3.77736,2647.4,2646.9,0.8288]
[1729585156874,3.77751,2647.3,2646.9,0.8288]
[1729585160806,3.77744,2647.3,2646.9,0.8288]
[1729585161830,3.77758,2647.2,2647.0,0.12046879]
[1729585162145,3.77771,2647.1,2647.0,0.12046879]
[1729585162350,4.58561,2647.1,2647.0,0.12046879]
[1729585162501,3.778,2646.9,2646.8,1.5]
[1729585162705,3.778,2646.9,2646.5,0.8281]
[1729585164345,7.55612,2646.9,2646.5,0.8281]
[1729585164551,3.778,2646.9,2646.5,0.8281]
[1729585165219,4.58569,2647.1,2646.5,0.8281]
[1729585165429,3.77786,2647.0,2646.5,4.60666]
[1729585166307,3.77786,2647.0,2646.5,0.8281]
[1729585167252,7.5556,2647.1,2646.5,4.6821478]
[1729585167449,3.77779,2647.1,2646.6,0.8065]
[1729585168314,3.77794,2647.0,2646.6,0.8065]
[1729585171147,4.58004,2647.0,2646.6,0.8065]
[1729585171816,3.778,2646.9,2646.6,0.8065]
[1729585172620,3.778,2646.9,2646.4,4.57871]
[1729585173816,3.778,2646.9,2646.4,0.8]
[1729585174842,3.778,2646.9,2646.4,4.57871]
[1729585175042,3.77829,2646.7,2646.4,0.8]
[1729585175562,3.77843,2646.6,2646.4,0.8]
[1729585175727,3.77843,2646.6,2646.1,0.01888674]
[1729585175728,3.77858,2646.5,2646.2,0.7767]
[1729585176762,3.77852,2646.6,2646.3,0.11709997]
[1729585177057,3.77852,2646.6,2646.2,0.7767]
[1729585177458,3.77852,2646.6,2646.3,0.11709997]
[1729585177756,3.77852,2646.6,2646.2,0.7767]
[1729585178064,3.77852,2646.6,2646.3,0.11709997]
[1729585178232,3.77852,2646.6,2646.2,0.7767]
[1729585178416,3.77852,2646.6,2646.3,0.11709997]
[1729585178616,3.77866,2646.5,2646.2,0.7767]
[1729585178860,3.77866,2646.5,2646.3,0.11709997]
[1729585179055,7.55678,2646.7,2646.2,2.09422153]
[1729585179366,3.77844,2646.6,2646.2,2.09422153]
[1729585179569,3.77844,2646.6,2646.3,0.11709997]
[1729585179856,3.77844,2646.6,2646.2,2.09422153]
[1729585180157,3.77844,2646.6,2646.3,0.11709997]
[1729585180356,3.77836,2646.7,2646.3,0.11709997]
[1729585180663,3.77836,2646.7,2646.4,0.11706729]
[1729585180927,3.77836,2646.7,2646.2,5.87321153]
[1729585181076,3.77836,2646.7,2646.5,0.11703461]
[1729585181234,3.77836,2646.7,2646.2,5.87321153]
[1729585181581,3.77836,2646.7,2646.3,0.11709997]
[1729585182074,3.77836,2646.7,2646.2,5.87321153]
[1729585182277,7.55675,2646.7,2646.3,0.11709997]
[1729585182575,3.77844,2646.6,2646.2,4.55569]
[1729585182759,3.77844,2646.6,2646.4,0.11706729]
[1729585182964,3.77844,2646.6,2646.3,0.11709997]
[1729585183271,3.77844,2646.6,2646.4,0.11706729]